fUSD/lending_fUSD_20260322
["ID","MTS","AMOUNT","RATE_DAILY","PERIOD"]
[408774060,1774221045640,-419.63500566,0.00013869,2]
[408774061,1774221045654,-2064.99999995,0.00013869,2]
[408774062,1774221045666,-2926.61154885,0.00013869,2]
[408774063,1774221045675,-255.0,0.0001389,2]
[408774064,1774221045686,-166.66,0.00013942,2]
[408774065,1774221045695,-68.32845115,0.00014,2]
[408774066,1774221045707,-85.97314885,0.00014,2]
[408774067,1774221045716,-500.0,0.00014,2]
[408774068,1774221045725,-502.0,0.00014,2]
[408774069,1774221045734,-1680.0,0.00014048,2]
[408774070,1774221045742,-98.48433376,0.00014082,2]
[408774075,1774221692816,500.0,0.00012575,10]
[408774077,1774222136731,5713.84069719,9.5e-05,3]
[408774084,1774222231722,-253.83271447,0.000101,2]
[408774087,1774222231897,-7.49608729,0.000101,2]
[408774089,1774222231907,-250.0,0.00010297,2]
[408774091,1774222231917,-171.25,0.00010494,2]
[408774093,1774222231930,-250.0,0.0001111,2]
[408774094,1774222231940,-402.69,0.00011858,2]
[408774095,1774222231949,-1500.0,0.00011966,2]
[408774096,1774222231959,-1476.78,0.00011973,2]
[408774097,1774222231969,-200.0,0.00012023,2]
[408774098,1774222231980,-1200.0,0.00012498,2]
[408774099,1774222231989,-36640.2985,0.00012499,2]
[408774100,1774222232000,-196.15933639,0.000125,2]
[408774101,1774222232009,-287.53338974,0.000125,2]
[408774102,1774222232019,-271.2247571,0.000125,2]
[408774103,1774222232029,-297.7953712,0.000125,2]
[408774104,1774222232039,-8704.8539,0.00012591,2]
[408774105,1774222232048,-174.0,0.00012595,2]
[408774106,1774222232058,-250.0,0.00012596,2]
[408774107,1774222232067,-150.0,0.00012598,2]
[408774108,1774222232076,-2691.3899,0.00012599,2]
[408774109,1774222232086,-2500.0,0.00012599,2]
[408774110,1774222232094,-558.5263567,0.00012599,2]
[408774111,1774222232104,-164.78,0.000126,2]
[408774112,1774222232113,-5094.98626171,0.000126,2]
[408774113,1774222232122,-5941.53377969,0.0001262,2]
[408774114,1774222232134,-4058.45622031,0.0001262,2]
[408774115,1774222232143,-1209.03,0.0001262,2]
[408774116,1774222232152,-999.99,0.0001262,2]
[408774117,1774222232161,-186.87,0.00012645,2]
[408774118,1774222232171,-1234.19,0.00012658,14]
[408774119,1774222232180,-170.675,0.00012672,2]
[408774120,1774222232189,-2422.92966733,0.00012672,2]
[408774123,1774222238275,-80.51633267,0.00012672,2]
[408774124,1774222238285,-500.0,0.00012673,2]
[408774125,1774222238294,-34.69914158,0.00012673,2]
[408774126,1774222238306,-466.32677043,0.00012673,2]
[408774127,1774222238315,-79.1272818,0.00012673,2]
[408774128,1774222238327,-420.8727182,0.00012673,2]
[408774129,1774222238337,-500.0,0.00012673,2]
[408774130,1774222238346,-500.0,0.00012673,2]
[408774131,1774222238356,-500.0,0.00012673,2]
[408774132,1774222238366,-500.0,0.00012673,2]
[408774133,1774222238375,-150.99,0.00012673,2]
[408774134,1774222238385,-299.99,0.00012673,2]
[408774135,1774222238394,-500.39228547,0.00012673,2]
[408774136,1774222238403,-160.18938204,0.00012673,2]
[408774137,1774222238413,-220.27940072,0.00012673,2]
[408774138,1774222238422,-160.19078417,0.00012673,2]
[408774139,1774222238432,-160.18949514,0.00012673,2]
[408774140,1774222238441,-226.95219616,0.00012673,2]
[408774141,1774222238451,-160.18928308,0.00012673,2]
[408774142,1774222238460,-160.18804043,0.00012673,2]
[408774143,1774222238470,-160.17670352,0.00012673,2]
[408774144,1774222238480,-500.0,0.00012673,2]
[408774145,1774222238489,-388.60866893,0.00012673,2]
[408774146,1774222238498,-369.73783683,0.00012673,2]
[408774147,1774222238509,-500.0,0.00012673,2]
[408774148,1774222238518,-241.45320531,0.00012673,2]
[408774149,1774222238567,-18.7418931,0.00012673,2]
[408774150,1774222238576,-237.07230042,0.00012673,2]
[408774151,1774222238588,-262.92769958,0.00012673,2]
[408774152,1774222238597,-543.10920901,0.00012673,2]
[408774153,1774222238606,-160.18751495,0.00012673,2]
[408774154,1774222238615,-500.0,0.00012673,2]
[408774155,1774222238624,-160.1922777,0.00012673,2]
[408774156,1774222238634,-151.0,0.00012691,2]
[408774157,1774222238643,-151.0,0.00012691,2]
[408774158,1774222238652,-151.0,0.00012691,2]
[408774159,1774222238661,-151.0,0.00012691,2]
[408774160,1774222238671,-151.0,0.00012691,2]
[408774161,1774222238680,-151.0,0.00012691,2]
[408774162,1774222238689,-151.0,0.00012691,2]
[408774163,1774222238698,-151.0,0.00012691,2]
[408774164,1774222238707,-151.0,0.00012691,2]
[408774165,1774222238717,-151.0,0.00012691,2]
[408774166,1774222238728,-151.0,0.00012691,2]
[408774167,1774222238738,-151.0,0.00012691,2]
[408774168,1774222238747,-151.0,0.00012691,2]
[408774169,1774222238757,-151.0,0.00012691,2]
[408774170,1774222238766,-4.30195268,0.00012691,2]
[408774171,1774222238783,-146.69804732,0.00012691,2]
[408774172,1774222238792,-151.0,0.00012691,2]
[408774173,1774222238802,-151.0,0.00012691,2]
[408774174,1774222238812,-151.0,0.00012691,2]
[408774175,1774222238821,-151.0,0.00012691,2]
[408774176,1774222238831,-151.0,0.00012691,2]
[408774177,1774222238840,-151.0,0.00012691,2]
[408774178,1774222238849,-151.0,0.00012691,2]
[408774179,1774222238859,-151.0,0.00012691,2]
[408774180,1774222238868,-151.0,0.00012691,2]
[408774181,1774222238878,-151.0,0.00012691,2]
[408774182,1774222238888,-151.0,0.00012691,2]
[408774183,1774222238897,-151.0,0.00012691,2]
[408774184,1774222238907,-151.0,0.00012691,2]
[408774185,1774222238917,-151.0,0.00012691,2]
[408774186,1774222238927,-151.0,0.00012691,2]
[408774187,1774222238939,-151.0,0.00012691,2]
[408774188,1774222238949,-151.0,0.00012691,2]
[408774189,1774222238959,-500.0,0.00012698,2]
[408774190,1774222238970,-500.0,0.00012698,2]
[408774191,1774222238979,-242.99,0.00012698,2]
[408774192,1774222238988,-284.90550552,0.000127,2]
[408774193,1774222239001,-2226.45747354,0.000127,2]
[408774194,1774222239046,-258.6,0.000127,2]
[408774195,1774222239058,-383.736,0.000127,2]
[408774196,1774222239069,-713.50810772,0.000127,2]
[408774197,1774222239081,-1245.1777546,0.000127,2]
[408774198,1774222239092,-3504.23363255,0.000127,2]
[408774199,1774222239104,-1692.718225,0.000127,2]
[408774202,1774222239925,-3406.8,0.000127,2]
[408774203,1774222240022,-1146.36127367,0.000127,2]
[408774204,1774222240033,-272.24010028,0.000127,2]
[408774205,1774222240407,-868.43364756,0.000127,2]
[408774206,1774222240417,-400.0,0.000128,4]
[408774207,1774222240426,-150.0,0.000129,2]
[408774208,1774222240436,-900.0,0.000129,4]
[408774209,1774222240445,-5094.98626163,0.00012967,2]
[408774210,1774222240454,-500.0,0.00012972,2]
[408774211,1774222240463,-250.0,0.00013,2]
[408774212,1774222240473,-16003.17172039,0.00013056,2]
[408774213,1774222240483,-1000.0,0.00013221,2]
[408774214,1774222240492,-547.78945051,0.00013221,2]
[408774215,1774222240501,-1000.0,0.00013221,2]
[408774217,1774222240510,-696.23259882,0.00013221,2]
[408774219,1774222240519,-1000.0,0.00013221,2]
[408774221,1774222240528,-624.88629479,0.00013221,2]
[408774223,1774222240538,-1000.0,0.00013221,2]
[408774225,1774222240547,-1000.0,0.00013221,2]
[408774227,1774222240557,-1000.0,0.00013221,2]
[408774229,1774222240566,-1000.0,0.00013221,2]
[408774231,1774222240575,-500.0,0.00013246,2]
[408774233,1774222240585,-2307.9992077,0.00013272,2]
[408774235,1774222240594,-12525.5796847,0.00013272,2]
[408774237,1774222240603,-1301.0639539,0.00013272,2]
[408774239,1774222240612,-5094.98626163,0.00013333,2]
[408774241,1774222240621,-16003.17172039,0.00013411,2]
[408774243,1774222240630,-500.0,0.00013434,2]
[408774245,1774222240639,-500.0,0.0001352,2]
[408774247,1774222240648,-2000.0,0.00013534,2]
[408774249,1774222240658,-166.66,0.00013641,2]
[408774251,1774222240667,-255.0,0.00013694,2]
[408774253,1774222240676,-157.42138461,0.00013697,2]
[408774255,1774222240686,-169.95906,0.00013697,2]
[408774257,1774222240695,-500.0,0.00013697,2]
[408774259,1774222240704,-276.8167788,0.00013697,2]
[408774261,1774222240713,-500.0,0.00013697,2]
[408774263,1774222240722,-150.61594236,0.00013697,2]
[408774265,1774222240731,-500.0,0.00013697,2]
[408774267,1774222240740,-500.0,0.00013697,2]
[408774269,1774222240749,-168.32035292,0.00013697,2]
[408774271,1774222240758,-500.0,0.00013697,2]
[408774273,1774222240767,-500.0,0.00013697,2]
[408774275,1774222240776,-500.0,0.00013697,2]
[408774277,1774222240787,-500.0,0.00013697,2]
[408774279,1774222240796,-500.0,0.00013697,2]
[408774281,1774222240806,-500.0,0.00013697,2]
[408774283,1774222240815,-500.0,0.00013697,2]
[408774285,1774222240828,-500.0,0.00013697,2]
[408774287,1774222240837,-500.0,0.00013697,2]
[408774289,1774222240847,-500.0,0.00013697,2]
[408774291,1774222240856,-500.0,0.00013697,2]
[408774293,1774222240864,-500.0,0.00013697,2]
[408774295,1774222240874,-500.0,0.00013697,2]
[408774297,1774222240884,-500.0,0.00013697,2]
[408774299,1774222240894,-500.0,0.00013697,2]
[408774301,1774222240903,-500.0,0.00013697,2]
[408774303,1774222240912,-500.0,0.00013697,2]
[408774305,1774222240921,-500.0,0.00013697,2]
[408774307,1774222240933,-500.0,0.00013697,2]
[408774309,1774222240943,-500.0,0.00013697,2]
[408774310,1774222240953,-500.0,0.00013697,2]
[408774311,1774222240963,-500.0,0.00013697,2]
[408774312,1774222240974,-500.0,0.00013697,2]
[408774313,1774222240983,-500.0,0.00013697,2]
[408774314,1774222240993,-500.0,0.00013697,2]
[408774315,1774222241004,-500.0,0.00013697,2]
[408774316,1774222241013,-500.0,0.00013697,2]
[408774317,1774222241022,-500.0,0.00013697,2]
[408774318,1774222241031,-500.0,0.00013697,2]
[408774320,1774222241041,-500.0,0.00013697,2]
[408774321,1774222241050,-229.28132605,0.00013697,2]
[408774322,1774222241059,-500.0,0.00013697,2]
[408774323,1774222241068,-500.0,0.00013697,2]
[408774324,1774222241078,-500.0,0.00013697,2]
[408774325,1774222241087,-500.0,0.00013697,2]
[408774326,1774222241096,-500.0,0.00013697,2]
[408774327,1774222241105,-500.0,0.00013698,2]
[408774328,1774222241115,-500.0,0.00013698,2]
[408774329,1774222241124,-500.0,0.00013698,2]
[408774330,1774222241134,-500.0,0.00013698,2]
[408774331,1774222241143,-500.0,0.00013698,2]
[408774332,1774222241152,-500.0,0.00013698,2]
[408774333,1774222241162,-500.0,0.00013698,2]
[408774334,1774222241173,-500.0,0.00013698,2]
[408774335,1774222241183,-500.0,0.00013698,2]
[408774336,1774222241192,-500.0,0.00013698,2]
[408774337,1774222241201,-500.0,0.00013698,2]
[408774338,1774222241210,-500.0,0.00013698,2]
[408774339,1774222241219,-500.0,0.00013698,2]
[408774340,1774222241228,-500.0,0.00013698,2]
[408774341,1774222241237,-500.0,0.00013698,2]
[408774342,1774222241246,-500.0,0.00013698,2]
[408774343,1774222241256,-500.0,0.00013698,2]
[408774344,1774222241267,-500.0,0.00013698,2]
[408774345,1774222241277,-500.0,0.00013698,2]
[408774346,1774222241287,-500.0,0.00013698,2]
[408774347,1774222241296,-500.0,0.00013698,2]
[408774348,1774222241305,-500.0,0.00013698,2]
[408774349,1774222241314,-500.0,0.00013698,2]
[408774350,1774222241323,-500.0,0.00013698,2]
[408774351,1774222241333,-500.0,0.00013698,2]
[408774352,1774222241344,-500.0,0.00013698,2]
[408774353,1774222241356,-500.0,0.00013698,2]
[408774354,1774222241365,-500.0,0.00013698,2]
[408774355,1774222241374,-500.0,0.00013698,2]
[408774356,1774222241384,-500.0,0.00013698,2]
[408774357,1774222241395,-500.0,0.00013698,2]
[408774358,1774222241404,-500.0,0.00013698,2]
[408774359,1774222241413,-500.0,0.00013698,2]
[408774360,1774222241422,-500.0,0.00013698,2]
[408774361,1774222241431,-500.0,0.00013698,2]
[408774362,1774222241440,-500.0,0.00013698,2]
[408774363,1774222241449,-500.0,0.00013698,2]
[408774364,1774222241458,-500.0,0.00013698,2]
[408774365,1774222241468,-500.0,0.00013698,2]
[408774366,1774222241477,-500.0,0.00013698,2]
[408774367,1774222241486,-504.81663731,0.00013698,2]
[408774368,1774222241495,-500.0,0.00013698,2]
[408774369,1774222241506,-500.0,0.00013698,2]
[408774370,1774222241515,-501.50298323,0.00013698,2]
[408774371,1774222241524,-500.0,0.00013698,2]
[408774372,1774222241533,-500.0,0.00013698,2]
[408774373,1774222241543,-500.0,0.00013698,2]
[408774374,1774222241552,-500.0,0.00013698,2]
[408774375,1774222241562,-500.0,0.00013698,2]
[408774376,1774222241573,-500.0,0.00013698,2]
[408774377,1774222241583,-500.0,0.00013698,2]
[408774378,1774222241592,-500.0,0.00013698,2]
[408774379,1774222241602,-500.0,0.00013698,2]
[408774380,1774222241613,-500.0,0.00013698,2]
[408774381,1774222241623,-500.0,0.00013698,2]
[408774382,1774222241633,-500.0,0.00013698,2]
[408774383,1774222241643,-500.0,0.00013698,2]
[408774384,1774222241652,-500.0,0.00013698,2]
[408774385,1774222241661,-500.0,0.00013698,2]
[408774386,1774222241672,-500.0,0.00013698,2]
[408774387,1774222241681,-500.0,0.00013698,2]
[408774388,1774222241690,-500.0,0.00013698,2]
[408774389,1774222241700,-500.0,0.00013698,2]
[408774390,1774222241711,-500.0,0.00013698,2]
[408774391,1774222241721,-500.0,0.00013698,2]
[408774392,1774222241730,-500.0,0.00013698,2]
[408774393,1774222241739,-500.0,0.00013698,2]
[408774394,1774222241748,-500.0,0.00013698,2]
[408774395,1774222241758,-500.0,0.00013698,2]
[408774396,1774222241767,-500.0,0.00013698,2]
[408774397,1774222241776,-500.0,0.00013698,2]
[408774398,1774222241788,-500.0,0.00013698,2]
[408774399,1774222241798,-500.0,0.00013698,2]
[408774400,1774222241808,-500.0,0.00013698,2]
[408774401,1774222241817,-500.0,0.00013698,2]
[408774402,1774222241827,-500.0,0.00013698,2]
[408774403,1774222241838,-500.0,0.00013698,2]
[408774404,1774222241848,-500.0,0.00013698,2]
[408774405,1774222241857,-500.0,0.00013698,2]
[408774406,1774222241867,-500.0,0.00013698,2]
[408774407,1774222241877,-500.0,0.00013698,2]
[408774408,1774222241886,-500.0,0.00013698,2]
[408774409,1774222241896,-500.0,0.00013698,2]
[408774410,1774222241906,-500.0,0.00013698,2]
[408774411,1774222241917,-500.0,0.00013698,2]
[408774412,1774222241928,-500.0,0.00013698,2]
[408774413,1774222241939,-500.0,0.00013698,2]
[408774414,1774222241948,-500.0,0.00013698,2]
[408774415,1774222241957,-500.0,0.00013698,2]
[408774416,1774222241967,-500.0,0.00013698,2]
[408774417,1774222241978,-503.55073109,0.00013698,2]
[408774418,1774222241988,-500.0,0.00013698,2]
[408774419,1774222241997,-500.0,0.00013698,2]
[408774420,1774222242008,-500.0,0.00013698,2]
[408774421,1774222242017,-502.37832167,0.00013698,2]
[408774422,1774222242026,-500.0,0.00013698,2]
[408774423,1774222242036,-500.0,0.00013698,2]
[408774424,1774222242046,-200.0,0.00013699,2]
[408774425,1774222242055,-902.95,0.000137,2]
[408774426,1774222242064,-1310.56,0.000137,2]
[408774427,1774222242073,-1355.22,0.000137,2]
[408774428,1774222242083,-5094.98626163,0.000137,2]
[408774429,1774222242092,-1680.0,0.00013748,2]
[408774430,1774222242101,-16003.17172039,0.00013767,2]
[408774431,1774222242111,-1500.0,0.00013768,2]
[408774432,1774222242120,-546.25965825,0.00013768,2]
[408774433,1774222242130,-1500.0,0.00013768,2]
[408774434,1774222242139,-1500.0,0.00013768,2]
[408774435,1774222242149,-620.68561883,0.00013768,2]
[408774436,1774222242158,-501.78785805,0.00013768,2]
[408774437,1774222242168,-979.16666667,0.00013791,2]
[408774438,1774222242177,-160.0,0.00013791,2]
[408774439,1774222242187,-500.0,0.00013794,2]
[408774440,1774222242196,-879.39,0.00013863,2]
[408774441,1774222242206,-783.61,0.00013863,2]
[408774442,1774222242216,-1400.0,0.000139,5]
[408774443,1774222242225,-166.66,0.00013928,2]
[408774444,1774222242234,-201.188304,0.00014,2]
[408774445,1774222242244,-502.0,0.00014,2]
[408774446,1774222242253,-5740.65849178,0.00014027,2]
[408774447,1774222242262,-5094.98626163,0.00014067,2]
[408774448,1774222242271,-500.0,0.00014068,2]
[408774449,1774222242281,-150.0,0.00014082,3]
[408774450,1774222242290,-2400.0,0.00014082,2]
[408774451,1774222242299,-16003.17172039,0.00014122,2]
[408774452,1774222242309,-1276.46,0.00014127,2]
[408774453,1774222242672,-879.39,0.00014137,2]
[408774454,1774222242682,-783.61,0.00014137,2]
[408774455,1774222242691,-154.05792023,0.00014153,2]
[408774456,1774222242700,-154.8696,0.000142,2]
[408774457,1774222242709,-166.66,0.00014215,2]
[408774459,1774222242718,-1417.09,0.00014255,2]
[408774460,1774222242727,-500.0,0.00014316,2]
[408774461,1774222242736,-500.0,0.00014316,2]
[408774462,1774222242746,-2000.0,0.00014316,2]
[408774463,1774222242756,-1000.0,0.00014316,2]
[408774465,1774222242765,-2000.0,0.00014316,2]
[408774466,1774222242775,-879.39,0.00014411,2]
[408774467,1774222242785,-783.61,0.00014411,2]
[408774468,1774222242795,-5094.98626163,0.00014433,2]
[408774469,1774222242805,-430.0,0.00014452,2]
[408774470,1774222242815,-430.0,0.00014452,2]
[408774471,1774222242825,-430.0,0.00014452,2]
[408774472,1774222242835,-430.0,0.00014452,2]
[408774473,1774222242844,-430.0,0.00014452,2]
[408774474,1774222242854,-430.0,0.00014452,2]
[408774475,1774222242864,-430.0,0.00014452,2]
[408774476,1774222242874,-430.0,0.00014452,2]
[408774477,1774222242884,-430.0,0.00014452,2]
[408774478,1774222242893,-430.0,0.00014452,2]
[408774479,1774222242903,-430.0,0.00014452,2]
[408774480,1774222242913,-430.0,0.00014452,2]
[408774481,1774222242923,-430.0,0.00014452,2]
[408774482,1774222242935,-430.0,0.00014452,2]
[408774483,1774222242946,-430.0,0.00014452,2]
[408774484,1774222242955,-430.0,0.00014452,2]
[408774485,1774222242965,-430.0,0.00014452,2]
[408774486,1774222242976,-430.0,0.00014452,2]
[408774487,1774222242985,-430.0,0.00014452,2]
[408774488,1774222242995,-430.0,0.00014452,2]
[408774489,1774222243004,-430.0,0.00014452,2]
[408774490,1774222243016,-430.0,0.00014452,2]
[408774491,1774222243026,-430.0,0.00014452,2]
[408774492,1774222243036,-437.98644877,0.00014452,2]
[408774493,1774222243046,-500.0,0.00014452,2]
[408774494,1774222243056,-500.0,0.00014452,2]
[408774495,1774222243066,-500.0,0.00014452,2]
[408774496,1774222243075,-500.0,0.00014452,2]
[408774497,1774222243084,-500.0,0.00014452,2]
[408774498,1774222243094,-500.0,0.00014452,2]
[408774499,1774222243103,-500.0,0.00014452,2]
[408774500,1774222243112,-500.0,0.00014452,2]
[408774501,1774222243122,-500.0,0.00014452,2]
[408774502,1774222243132,-500.0,0.00014452,2]
[408774503,1774222243142,-500.0,0.00014452,2]
[408774504,1774222243151,-500.0,0.00014452,2]
[408774505,1774222243160,-500.0,0.00014452,2]
[408774506,1774222243170,-500.0,0.00014452,2]
[408774507,1774222243181,-500.0,0.00014452,2]
[408774508,1774222243191,-500.0,0.00014452,2]
[408774510,1774222243200,-500.0,0.00014452,2]
[408774512,1774222243210,-153.6321824,0.00014452,2]
[408774515,1774222243219,-16003.17172039,0.00014478,2]
[408774517,1774222243229,-3240.0,0.00014487,2]
[408774518,1774222243238,-187.609305,0.00014499,7]
[408774520,1774222243248,-166.66,0.00014502,2]
[408774521,1774222243257,-166.66,0.00014517,2]
[408774522,1774222243266,-151.0,0.00014536,2]
[408774523,1774222243276,-200.0,0.00014536,2]
[408774524,1774222243285,-174.61919141,0.00014536,2]
[408774525,1774222243295,-500.0,0.00014536,2]
[408774526,1774222243304,-500.0,0.00014536,2]
[408774527,1774222243314,-500.0,0.00014536,2]
[408774528,1774222243323,-500.0,0.00014536,2]
[408774529,1774222243333,-500.0,0.00014536,2]
[408774530,1774222243342,-250.0,0.00014536,2]
[408774531,1774222243351,-250.0,0.00014536,2]
[408774532,1774222243360,-250.0,0.00014536,2]
[408774533,1774222243369,-500.0,0.00014536,2]
[408774534,1774222243378,-500.0,0.00014536,2]
[408774535,1774222243388,-500.0,0.00014536,2]
[408774536,1774222243397,-500.0,0.00014536,2]
[408774537,1774222243406,-500.0,0.00014536,2]
[408774538,1774222243416,-500.0,0.00014536,2]
[408774539,1774222243426,-500.0,0.00014536,2]
[408774540,1774222243436,-578.20924308,0.00014536,2]
[408774541,1774222243445,-7010.64792611,0.00014536,2]
[408774542,1774222243454,-500.0,0.00014536,2]
[408774543,1774222243464,-500.0,0.00014536,2]
[408774544,1774222243473,-151.0,0.00014536,2]
[408774545,1774222243483,-695.39793187,0.00014536,2]
[408774546,1774222243492,-500.0,0.00014536,2]
[408774547,1774222243502,-383.23755688,0.00014536,2]
[408774548,1774222243512,-500.0,0.00014536,2]
[408774549,1774222243521,-500.0,0.00014536,2]
[408774550,1774222243530,-500.0,0.00014536,2]
[408774551,1774222243540,-500.0,0.00014536,2]
[408774552,1774222243550,-500.0,0.00014536,2]
[408774553,1774222243560,-500.0,0.00014536,2]
[408774554,1774222243570,-438.057446,0.00014537,7]
[408774555,1774222243579,-383.844814,0.00014537,7]
[408774556,1774222243589,-218.147063,0.00014567,7]
[408774557,1774222243599,-189.584621,0.00014567,7]
[408774558,1774222243609,-174.517651,0.00014567,7]
[408774559,1774222243619,-341.887205,0.00014568,7]
[408774560,1774222243632,-257.906361,0.00014579,7]
[408774561,1774222243642,-151.0,0.00014591,2]
[408774562,1774222243652,-500.0,0.00014591,2]
[408774563,1774222243661,-1015.2876213,0.0001462,2]
[408774564,1774222243671,-151.0,0.00014646,2]
[408774565,1774222243682,-500.0,0.00014646,2]
[408774566,1774222243691,-967.93,0.00014685,2]
[408774567,1774222243701,-886.21,0.00014685,2]
[408774568,1774222243711,-1261.0,0.00014688,2]
[408774569,1774222243720,-150.0,0.00014688,2]
[408774570,1774222243730,-1215.0,0.00014688,2]
[408774571,1774222243739,-927.353,0.00014688,2]
[408774572,1774222243749,-6008.0,0.00014688,2]
[408774573,1774222243758,-2609.246,0.00014688,2]
[408774574,1774222243768,-151.0,0.00014701,2]
[408774575,1774222243777,-500.0,0.00014701,2]
[408774576,1774222243787,-1634.07195426,0.0001474,2]
[408774577,1774222243796,-151.0,0.00014756,2]
[408774578,1774222243806,-500.0,0.00014756,2]
[408774579,1774222243815,-502.0,0.00014786,2]
[408774580,1774222243825,-166.66,0.00014789,2]
[408774581,1774222243834,-1634.07195426,0.00014795,2]
[408774582,1774222243844,-5094.98626163,0.000148,2]
[408774583,1774222243854,-151.0,0.00014811,2]
[408774584,1774222243863,-500.0,0.00014811,2]
[408774585,1774222243872,-16003.17172039,0.00014833,2]
[408774586,1774222243882,-501.3548295,0.00014864,2]
[408774587,1774222243892,-2500.0,0.00014864,2]
[408774588,1774222243901,-151.0,0.00014866,2]
[408774589,1774222243912,-500.0,0.00014866,2]
[408774590,1774222243922,-1634.07195426,0.00014877,2]
[408774591,1774222243934,-433.0,0.00014891,2]
[408774592,1774222243944,-172.03671605,0.000149,2]
[408774593,1774222243954,-172.03671604,0.000149,2]
[408774594,1774222243964,-2000.0,0.00014904,2]
[408774595,1774222243974,-151.0,0.00014921,2]
[408774596,1774222243985,-500.0,0.00014921,2]
[408774597,1774222243994,-1634.07195426,0.00014932,2]
[408774598,1774222244005,-2794.834601,0.00014954,2]
[408774599,1774222244014,-1417.09,0.00014968,2]
[408774600,1774222244024,-151.0,0.00014976,2]
[408774601,1774222244033,-500.0,0.00014976,2]
[408774602,1774222244043,-1634.07195426,0.00014986,2]
[408774603,1774222244052,-300.0,0.00015,2]
[408774604,1774222244062,-203.6842408,0.00015,2]
[408774605,1774222244071,-1197.0,0.00015022,5]
[408774606,1774222244080,-1532.0,0.00015022,5]
[408774607,1774222244090,-151.0,0.00015031,2]
[408774608,1774222244100,-500.0,0.00015031,2]
[408774609,1774222244110,-1634.07195426,0.00015041,2]
[408774610,1774222244119,-3223.0,0.00015071,2]
[408774611,1774222244128,-166.66,0.00015076,2]
[408774612,1774222244138,-200.0,0.00015084,2]
[408774613,1774222244147,-181.08010149,0.00015084,2]
[408774614,1774222244157,-256.52975155,0.00015084,2]
[408774615,1774222244166,-151.0,0.00015086,2]
[408774616,1774222244175,-500.0,0.00015086,2]
[408774617,1774222244185,-166.66,0.00015092,2]
[408774618,1774222244194,-1634.07195426,0.00015096,2]
[408774619,1774222244204,-151.0,0.00015096,2]
[408774620,1774222244214,-2000.0,0.000151,2]
[408774621,1774222244224,-2351.0,0.00015122,2]
[408774622,1774222244234,-151.0,0.00015141,2]
[408774623,1774222244244,-500.0,0.00015141,2]
[408774624,1774222244254,-1634.07195426,0.00015151,2]
[408774625,1774222244264,-451.0,0.00015154,2]
[408774626,1774222244275,-5094.98626163,0.00015167,2]
[408774627,1774222244284,-151.0,0.00015167,2]
[408774628,1774222244294,-151.0,0.00015167,2]
[408774629,1774222244303,-151.0,0.00015167,2]
[408774630,1774222244313,-151.0,0.00015167,2]
[408774631,1774222244323,-438.654028,0.00015167,2]
[408774632,1774222244332,-438.654028,0.00015167,2]
[408774633,1774222244341,-438.654028,0.00015167,2]
[408774634,1774222244351,-438.654028,0.00015167,2]
[408774635,1774222244360,-16003.17172039,0.00015189,2]